fUST/lending_fUST_20241205
["ID","MTS","AMOUNT","RATE_DAILY","PERIOD"]
[344298749,1733332239154,-500.0,0.00024556,2]
[344298751,1733332239164,-500.0,0.00024556,2]
[344298753,1733332239174,-500.0,0.00024556,2]
[344298755,1733332239184,-500.0,0.00024556,2]
[344298757,1733332239194,-500.0,0.00024556,2]
[344298759,1733332239204,-500.0,0.00024556,2]
[344298761,1733332239214,-500.0,0.00024556,2]
[344298763,1733332239223,-500.0,0.00024556,2]
[344298765,1733332239233,-500.0,0.00024556,2]
[344298767,1733332239251,-500.0,0.00024556,2]
[344298769,1733332239261,-500.0,0.00024556,2]
[344298771,1733332239270,-500.0,0.00024556,2]
[344298773,1733332239281,-500.0,0.00024556,2]
[344298775,1733332239292,-500.0,0.00024556,2]
[344298777,1733332239302,-500.0,0.00024556,2]
[344298779,1733332239312,-500.0,0.00024556,2]
[344298781,1733332239325,-500.0,0.00024556,2]
[344298783,1733332239336,-250.0,0.00024556,2]
[344298785,1733332239346,-500.0,0.00024556,2]
[344298787,1733332239355,-500.0,0.00024556,2]
[344298789,1733332239364,-500.0,0.00024556,2]
[344298790,1733332239374,-500.0,0.00024556,2]
[344298792,1733332239383,-500.0,0.00024556,2]
[344298794,1733332239393,-500.0,0.00024556,2]
[344298796,1733332239403,-500.0,0.00024556,2]
[344298798,1733332239412,-500.0,0.00024556,2]
[344298800,1733332239421,-500.0,0.00024556,2]
[344298802,1733332239431,-33333.0,0.00024557,2]
[344298804,1733332239442,-174.31591767,0.00024656,2]
[344298806,1733332239451,-646.55338849,0.00024656,2]
[344298808,1733332239460,-176.66220179,0.00024656,2]
[344298810,1733332239472,-170.11516162,0.00024656,2]
[344298812,1733332239482,-231.65847669,0.00024657,7]
[344298814,1733332239495,-500.0,0.00024657,7]
[344298816,1733332239507,-502.36685873,0.00024657,7]
[344298818,1733332239517,-500.0,0.00024657,7]
[344298820,1733332239527,-500.0,0.00024657,7]
[344298822,1733332239536,-432.0238694,0.00024657,7]
[344298824,1733332239547,-500.0,0.00024657,7]
[344298826,1733332239557,-469.6351887,0.00024657,7]
[344298828,1733332239572,-500.0,0.00024657,7]
[344298830,1733332239581,-510.29,0.00024657,7]
[344298832,1733332239591,-500.0,0.00024657,7]
[344298834,1733332239601,-1169.27083333,0.00024657,7]
[344298836,1733332239611,-1169.27083333,0.00024657,7]
[344298838,1733332239621,-500.0,0.00024657,7]
[344298840,1733332239631,-500.0,0.00024657,7]
[344298842,1733332239640,-500.0,0.00024657,7]
[344298844,1733332239650,-500.0,0.00024657,7]
[344298846,1733332239660,-782.91,0.00024657,7]
[344298865,1733332239846,-500.0,0.00024657,7]
[344298867,1733332239857,-500.0,0.00024657,7]
[344298869,1733332239867,-777.04,0.00024657,7]
[344298871,1733332239876,-500.0,0.00024657,7]
[344298873,1733332239886,-500.0,0.00024657,7]
[344298875,1733332239896,-755.06,0.00024657,7]
[344298877,1733332239906,-500.0,0.00024657,7]
[344298879,1733332239915,-500.0,0.00024657,7]
[344298881,1733332239925,-1014.22,0.00024657,7]
[344298883,1733332239935,-500.0,0.00024657,7]
[344298885,1733332239944,-500.0,0.00024657,7]
[344298887,1733332239955,-500.0,0.00024657,7]
[344298889,1733332239964,-500.0,0.00024657,7]
[344298891,1733332239974,-500.0,0.00024657,7]
[344298893,1733332239984,-500.0,0.00024657,7]
[344298895,1733332239996,-500.0,0.00024657,7]
[344298898,1733332240006,-500.0,0.00024657,7]
[344298899,1733332240016,-500.0,0.00024657,7]
[344298901,1733332240025,-500.0,0.00024657,7]
[344298903,1733332240036,-500.0,0.00024657,7]
[344298907,1733332240047,-500.0,0.00024657,7]
[344298909,1733332240057,-500.0,0.00024657,7]
[344298912,1733332240067,-500.0,0.00024657,7]
[344298913,1733332240078,-200.0,0.00024657,7]
[344298915,1733332240088,-500.0,0.00024657,7]
[344298916,1733332240098,-500.0,0.00024657,7]
[344298917,1733332240109,-500.0,0.00024657,7]
[344298918,1733332240119,-500.0,0.00024657,7]
[344298919,1733332240129,-500.0,0.00024657,7]
[344298920,1733332240139,-729.3,0.00024657,7]
[344298921,1733332240150,-500.0,0.00024657,7]
[344298922,1733332240159,-500.0,0.00024657,7]
[344298923,1733332240169,-308.64422854,0.00024657,7]
[344298924,1733332240179,-509.91878066,0.00024657,7]
[344298925,1733332240189,-711.32,0.00024657,7]
[344298926,1733332240198,-500.0,0.00024657,7]
[344298927,1733332240211,-500.0,0.00024657,7]
[344298928,1733332240221,-593.64,0.00024657,7]
[344298929,1733332240231,-500.0,0.00024657,7]
[344298930,1733332240246,-309.2923842,0.00024657,7]
[344298931,1733332240260,-1689.69,0.00024657,7]
[344298932,1733332240270,-500.0,0.00024657,7]
[344298933,1733332240280,-203.20834067,0.00024657,7]
[344298934,1733332240290,-778.79,0.00024657,7]
[344298935,1733332240302,-500.0,0.00024657,7]
[344298936,1733332240312,-500.0,0.00024657,7]
[344298937,1733332240322,-500.0,0.00024657,7]
[344298938,1733332240334,-500.0,0.00024657,7]
[344298939,1733332240345,-795.5,0.00024657,7]
[344298940,1733332240355,-500.0,0.00024657,7]
[344298941,1733332240365,-500.0,0.00024657,7]
[344298942,1733332240376,-500.0,0.00024657,7]
[344298943,1733332240387,-500.0,0.00024657,7]
[344298944,1733332240398,-500.0,0.00024657,7]
[344298945,1733332240407,-548.55,0.00024657,7]
[344298946,1733332240419,-650.94,0.00024657,7]
[344298948,1733332240429,-500.0,0.00024657,7]
[344298950,1733332240439,-500.0,0.00024657,7]
[344298952,1733332240448,-500.0,0.00024657,7]
[344298954,1733332240458,-500.0,0.00024657,7]
[344298956,1733332240467,-500.0,0.00024657,7]
[344298958,1733332240476,-480.3072167,0.00024657,7]
[344298960,1733332240486,-408.47982976,0.00024657,7]
[344298962,1733332240501,-500.0,0.00024657,7]
[344298964,1733332240511,-659.69,0.00024657,7]
[344298966,1733332240520,-500.0,0.00024657,7]
[344298968,1733332240531,-500.0,0.00024657,7]
[344298970,1733332240540,-500.0,0.00024657,7]
[344298972,1733332240550,-500.0,0.00024657,7]
[344298974,1733332240560,-500.0,0.00024657,7]
[344298976,1733332240570,-500.0,0.00024657,7]
[344298978,1733332240579,-500.0,0.00024657,7]
[344298980,1733332240590,-500.0,0.00024657,7]
[344298982,1733332240599,-1186.21,0.00024657,7]
[344298984,1733332240609,-353.50058052,0.00024657,7]
[344298986,1733332240620,-500.0,0.00024657,7]
[344298988,1733332240629,-649.37849436,0.00024657,7]
[344298990,1733332240639,-500.0,0.00024657,7]
[344298992,1733332240649,-500.0,0.00024657,7]
[344298994,1733332240659,-500.0,0.00024657,7]
[344298996,1733332240668,-500.0,0.00024657,7]
[344298998,1733332240678,-500.0,0.00024657,7]
[344299000,1733332240687,-500.0,0.00024657,7]
[344299002,1733332240697,-500.0,0.00024657,7]
[344299004,1733332240706,-500.0,0.00024657,7]
[344299006,1733332240716,-500.0,0.00024657,7]
[344299008,1733332240726,-500.0,0.00024657,7]
[344299010,1733332240735,-500.0,0.00024657,7]
[344299012,1733332240749,-500.0,0.00024657,7]
[344299014,1733332240759,-500.0,0.00024657,7]
[344299016,1733332240769,-597.73693504,0.00024657,7]
[344299017,1733332240779,-500.0,0.00024657,7]
[344299019,1733332240789,-500.0,0.00024657,7]
[344299021,1733332240798,-500.0,0.00024657,7]
[344299023,1733332240809,-500.0,0.00024657,2]
[344299025,1733332240818,-500.0,0.00024657,7]
[344299027,1733332240828,-915.82,0.00024657,7]
[344299029,1733332240837,-500.0,0.00024657,7]
[344299031,1733332240847,-500.0,0.00024657,7]
[344299033,1733332240856,-500.0,0.00024657,7]
[344299035,1733332240866,-500.0,0.00024657,7]
[344299036,1733332240875,-500.0,0.00024657,7]
[344299038,1733332240885,-670.01,0.00024657,7]
[344299040,1733332240895,-607.54876747,0.00024657,7]
[344299042,1733332240904,-500.0,0.00024657,7]
[344299044,1733332240914,-428.03996566,0.00024657,7]
[344299046,1733332240923,-183.06704887,0.00024657,7]
[344299048,1733332240933,-500.0,0.00024657,7]
[344299050,1733332240943,-500.0,0.00024657,7]
[344299051,1733332240953,-500.0,0.00024657,7]
[344299053,1733332240963,-611.89,0.00024657,7]
[344299055,1733332240972,-500.0,0.00024657,7]
[344299057,1733332240982,-500.0,0.00024657,7]
[344299059,1733332240994,-599.65,0.00024657,7]
[344299061,1733332241004,-3394.73,0.00024657,7]
[344299063,1733332241014,-500.0,0.00024657,7]
[344299065,1733332241024,-500.0,0.00024657,7]
[344299067,1733332241033,-500.0,0.00024657,7]
[344299069,1733332241043,-500.0,0.00024657,7]
[344299071,1733332241053,-671.24,0.00024657,7]
[344299073,1733332241063,-500.0,0.00024657,7]
[344299075,1733332241072,-500.0,0.00024657,7]
[344299077,1733332241082,-529.64,0.00024657,7]
[344299079,1733332241092,-500.0,0.00024657,7]
[344299081,1733332241102,-7595.34,0.00024657,7]
[344299083,1733332241112,-500.0,0.00024657,7]
[344299085,1733332241121,-500.0,0.00024657,7]
[344299087,1733332241131,-500.0,0.00024657,7]
[344299089,1733332241141,-500.0,0.00024657,7]
[344299091,1733332241150,-500.0,0.00024657,7]
[344299093,1733332241159,-1069.6,0.00024657,7]
[344299094,1733332241169,-500.0,0.00024657,7]
[344299096,1733332241179,-500.0,0.00024657,7]
[344299098,1733332241189,-500.0,0.00024657,7]
[344299100,1733332241198,-2291.97,0.00024657,7]
[344299102,1733332241208,-500.0,0.00024657,7]
[344299104,1733332241217,-500.0,0.00024657,7]
[344299106,1733332241227,-500.0,0.00024657,7]
[344299108,1733332241237,-500.0,0.00024657,7]
[344299110,1733332241254,-500.0,0.00024657,7]
[344299112,1733332241263,-500.0,0.00024657,7]
[344299114,1733332241273,-500.0,0.00024657,7]
[344299116,1733332241283,-500.0,0.00024657,7]
[344299118,1733332241294,-333.1208509,0.00024657,7]
[344299120,1733332241304,-500.0,0.00024657,7]
[344299122,1733332241314,-500.0,0.00024657,7]
[344299124,1733332241324,-500.0,0.00024657,7]
[344299126,1733332241335,-500.0,0.00024657,7]
[344299128,1733332241345,-500.0,0.00024657,7]
[344299130,1733332241354,-2322.4,0.00024657,7]
[344299132,1733332241364,-1501.97,0.00024657,7]
[344299134,1733332241373,-508.59796121,0.00024657,7]
[344299136,1733332241382,-500.0,0.00024657,7]
[344299138,1733332241391,-500.0,0.00024657,7]
[344299140,1733332241401,-500.0,0.00024657,7]
[344299142,1733332241411,-735.94,0.00024657,7]
[344299144,1733332241420,-1754.39,0.00024657,7]
[344299146,1733332241429,-624.24,0.00024657,7]
[344299148,1733332241439,-536.7,0.00024657,7]
[344299150,1733332241448,-500.0,0.00024657,7]
[344299151,1733332241457,-500.0,0.00024657,7]
[344299153,1733332241467,-504.58089983,0.00024657,7]
[344299155,1733332241477,-500.0,0.00024657,7]
[344299157,1733332241486,-781.62,0.00024657,7]
[344299159,1733332241499,-500.0,0.00024657,7]
[344299161,1733332241509,-500.0,0.00024657,7]
[344299163,1733332241518,-500.0,0.00024657,7]
[344299165,1733332241528,-2125.29,0.00024657,7]
[344299167,1733332241537,-711.75,0.00024657,7]
[344299169,1733332241546,-500.0,0.00024657,7]
[344299171,1733332241555,-500.0,0.00024657,7]
[344299173,1733332241565,-500.0,0.00024657,7]
[344299175,1733332241575,-694.53,0.00024657,7]
[344299177,1733332241584,-500.0,0.00024657,7]
[344299179,1733332241594,-500.0,0.00024657,7]
[344299181,1733332241604,-500.0,0.00024657,7]
[344299183,1733332241613,-500.0,0.00024657,7]
[344299185,1733332241623,-500.0,0.00024657,7]
[344299187,1733332241632,-786.66,0.00024657,7]
[344299189,1733332241642,-500.0,0.00024657,7]
[344299191,1733332241653,-835.77,0.00024657,7]
[344299193,1733332241662,-1372.14,0.00024657,7]
[344299195,1733332241672,-500.0,0.00024657,7]
[344299197,1733332241682,-521.37,0.00024657,7]
[344299199,1733332241691,-740.95,0.00024657,7]
[344299201,1733332241701,-500.0,0.00024657,7]
[344299203,1733332241711,-500.0,0.00024657,7]
[344299205,1733332241720,-797.73,0.00024657,7]
[344299207,1733332241731,-778.97,0.00024657,7]
[344299209,1733332241741,-500.0,0.00024657,7]
[344299211,1733332241754,-500.0,0.00024657,7]
[344299213,1733332241764,-500.0,0.00024657,7]
[344299215,1733332241775,-500.0,0.00024657,7]
[344299216,1733332241784,-7133.9,0.00024657,7]
[344299218,1733332241793,-500.0,0.00024657,7]
[344299220,1733332241803,-500.0,0.00024657,7]
[344299222,1733332241813,-500.0,0.00024657,7]
[344299224,1733332241823,-500.0,0.00024673,2]
[344299226,1733332241832,-500.0,0.00024931,7]
[344299228,1733332241842,-500.0,0.00024931,7]
[344299230,1733332241851,-510.29,0.00024931,7]
[344299232,1733332241861,-500.0,0.00024931,7]
[344299234,1733332241871,-500.0,0.00024931,7]
[344299236,1733332241882,-500.0,0.00024931,7]
[344299238,1733332241892,-500.0,0.00024931,7]
[344299240,1733332241902,-500.0,0.00024931,7]
[344299242,1733332241912,-782.91,0.00024931,7]
[344299244,1733332241922,-500.0,0.00024931,7]
[344299246,1733332241931,-500.0,0.00024931,7]
[344299248,1733332241942,-777.04,0.00024931,7]
[344299250,1733332241951,-500.0,0.00024931,7]
[344299252,1733332241961,-500.0,0.00024931,7]
[344299254,1733332241971,-755.06,0.00024931,7]
[344299256,1733332241980,-500.0,0.00024931,7]
[344299258,1733332241990,-500.0,0.00024931,7]
[344299260,1733332242004,-1014.22,0.00024931,7]
[344299261,1733332242014,-500.0,0.00024931,7]
[344299264,1733332242024,-500.0,0.00024931,7]
[344299266,1733332242034,-500.0,0.00024931,7]
[344299267,1733332242043,-500.0,0.00024931,7]
[344299269,1733332242053,-500.0,0.00024931,7]
[344299272,1733332242063,-500.0,0.00024931,7]
[344299274,1733332242073,-500.0,0.00024931,7]
[344299275,1733332242082,-193.33145984,0.00024931,7]
[344299277,1733332242092,-550.87228272,0.00024931,7]
[344299279,1733332242101,-500.0,0.00024931,7]
[344299281,1733332242111,-500.0,0.00024931,7]
[344299283,1733332242121,-500.0,0.00024931,7]
[344299285,1733332242131,-200.0,0.00024931,7]
[344299287,1733332242141,-500.0,0.00024931,7]
[344299289,1733332242152,-500.0,0.00024931,7]
[344299291,1733332242162,-500.0,0.00024931,7]
[344299293,1733332242171,-500.0,0.00024931,7]
[344299295,1733332242181,-500.0,0.00024931,7]
[344299297,1733332242191,-729.3,0.00024931,7]
[344299299,1733332242201,-500.0,0.00024931,7]
[344299301,1733332242211,-500.0,0.00024931,7]
[344299303,1733332242221,-711.32,0.00024931,7]
[344299305,1733332242231,-500.0,0.00024931,7]
[344299307,1733332242244,-500.0,0.00024931,7]
[344299309,1733332242257,-593.64,0.00024931,7]
[344299311,1733332242268,-500.0,0.00024931,7]
[344299312,1733332242277,-1689.69,0.00024931,7]
[344299315,1733332242287,-500.0,0.00024931,7]
[344299316,1733332242299,-778.79,0.00024931,7]
[344299317,1733332242311,-500.0,0.00024931,7]
[344299318,1733332242320,-500.0,0.00024931,7]
[344299319,1733332242333,-500.0,0.00024931,7]
[344299320,1733332242342,-500.0,0.00024931,7]
[344299321,1733332242352,-795.5,0.00024931,7]
[344299322,1733332242361,-500.0,0.00024931,7]
[344299323,1733332242371,-500.0,0.00024931,7]
[344299324,1733332242381,-500.0,0.00024931,7]
[344299325,1733332242390,-500.0,0.00024931,7]
[344299326,1733332242399,-500.0,0.00024931,7]
[344299327,1733332242409,-548.55,0.00024931,7]
[344299328,1733332242419,-650.94,0.00024931,7]
[344299329,1733332242429,-500.0,0.00024931,7]
[344299330,1733332242438,-500.0,0.00024931,7]
[344299331,1733332242448,-500.0,0.00024931,7]
[344299332,1733332242458,-500.0,0.00024931,7]
[344299333,1733332242468,-500.0,0.00024931,7]
[344299334,1733332242478,-500.0,0.00024931,7]
[344299335,1733332242487,-659.69,0.00024931,7]
[344299336,1733332242501,-500.0,0.00024931,7]
[344299337,1733332242511,-500.0,0.00024931,7]
[344299338,1733332242520,-500.0,0.00024931,7]
[344299339,1733332242529,-500.0,0.00024931,7]
[344299341,1733332242539,-500.0,0.00024931,7]
[344299342,1733332242550,-500.0,0.00024931,7]
[344299344,1733332242560,-500.0,0.00024931,7]
[344299346,1733332242569,-1186.21,0.00024931,7]
[344299348,1733332242580,-500.0,0.00024931,7]
[344299350,1733332242589,-500.0,0.00024931,7]
[344299352,1733332242599,-500.0,0.00024931,7]
[344299354,1733332242609,-479.47845394,0.00024931,7]
[344299356,1733332242618,-500.0,0.00024931,7]
[344299358,1733332242628,-500.0,0.00024931,7]
[344299360,1733332242638,-500.0,0.00024931,7]
[344299362,1733332242648,-500.0,0.00024931,7]
[344299364,1733332242657,-289.77,0.00024931,7]
[344299366,1733332242667,-500.0,0.00024931,7]
[344299368,1733332242676,-500.0,0.00024931,7]
[344299370,1733332242685,-500.0,0.00024931,7]
[344299372,1733332242695,-915.82,0.00024931,7]
[344299374,1733332242704,-500.0,0.00024931,7]
[344299376,1733332242714,-500.0,0.00024931,7]
[344299378,1733332242723,-670.01,0.00024931,7]
[344299380,1733332242733,-500.0,0.00024931,7]
[344299382,1733332242743,-500.0,0.00024931,7]
[344299384,1733332242757,-500.0,0.00024931,7]
[344299386,1733332242767,-611.89,0.00024931,7]
[344299388,1733332242777,-500.0,0.00024931,7]
[344299390,1733332242786,-599.65,0.00024931,7]
[344299392,1733332242796,-3394.73,0.00024931,7]
[344299394,1733332242805,-500.0,0.00024931,7]
[344299396,1733332242815,-500.0,0.00024931,7]
[344299398,1733332242824,-500.0,0.00024931,7]
[344299399,1733332242833,-671.24,0.00024931,7]
[344299402,1733332242843,-529.64,0.00024931,7]
[344299404,1733332242853,-500.0,0.00024931,7]
[344299406,1733332242863,-7595.34,0.00024931,7]
[344299408,1733332242874,-270.44602302,0.00024931,7]
[344299410,1733332242884,-378.54414852,0.00024931,7]
[344299412,1733332242894,-1069.6,0.00024931,7]
[344299414,1733332242904,-500.0,0.00024931,7]
[344299416,1733332242913,-500.0,0.00024931,7]
[344299418,1733332242923,-2291.97,0.00024931,7]
[344299420,1733332242932,-168.54524589,0.00024931,7]
[344299422,1733332242942,-500.0,0.00024931,7]
[344299423,1733332242952,-500.0,0.00024931,7]
[344299425,1733332242961,-500.0,0.00024931,7]
[344299427,1733332242971,-500.0,0.00024931,7]
[344299429,1733332242981,-500.0,0.00024931,7]
[344299431,1733332242991,-2322.4,0.00024931,7]
[344299433,1733332243005,-1501.97,0.00024931,7]
[344299435,1733332243014,-500.0,0.00024931,7]
[344299437,1733332243023,-500.0,0.00024931,7]
[344299439,1733332243033,-735.94,0.00024931,7]
[344299441,1733332243043,-1754.39,0.00024931,7]
[344299443,1733332243053,-624.24,0.00024931,7]
[344299446,1733332243064,-536.7,0.00024931,7]
[344299448,1733332243074,-500.0,0.00024931,7]
[344299449,1733332243083,-500.0,0.00024931,7]
[344299452,1733332243093,-781.62,0.00024931,7]
[344299454,1733332243102,-349.28743775,0.00024931,7]
[344299456,1733332243112,-2125.29,0.00024931,7]
[344299458,1733332243124,-711.75,0.00024931,7]
[344299460,1733332243134,-500.0,0.00024931,7]
[344299462,1733332243145,-500.0,0.00024931,7]
[344299464,1733332243155,-500.0,0.00024931,7]
[344299466,1733332243166,-694.53,0.00024931,7]
[344299468,1733332243176,-500.0,0.00024931,7]
[344299470,1733332243187,-500.0,0.00024931,7]
[344299472,1733332243197,-500.0,0.00024931,7]
[344299474,1733332243207,-500.0,0.00024931,7]
[344299476,1733332243217,-786.66,0.00024931,7]
[344299478,1733332243227,-835.77,0.00024931,7]
[344299480,1733332243237,-1372.14,0.00024931,7]
[344299482,1733332243251,-500.0,0.00024931,7]
[344299485,1733332243262,-521.37,0.00024931,7]
[344299487,1733332243272,-740.95,0.00024931,7]
[344299489,1733332243282,-500.0,0.00024931,7]
[344299493,1733332243292,-645.62706913,0.00024931,7]
[344299496,1733332243303,-797.73,0.00024931,7]
[344299498,1733332243312,-778.97,0.00024931,7]
[344299500,1733332243322,-500.0,0.00024931,7]
[344299502,1733332243335,-500.0,0.00024931,7]
[344299505,1733332243347,-500.0,0.00024931,7]
[344299508,1733332243357,-500.0,0.00024931,7]
[344299510,1733332243367,-7133.9,0.00024931,7]
[344299512,1733332243379,-500.0,0.00024931,7]
[344299513,1733332243389,-500.0,0.00024931,7]
[344299516,1733332243398,-500.0,0.00024931,7]
[344299517,1733332243408,-500.0,0.00024973,2]
[344299519,1733332243418,-420.0,0.00024987,2]
[344299521,1733332243428,-500.0,0.00025205,7]
[344299524,1733332243437,-500.0,0.00025205,7]
[344299525,1733332243447,-510.29,0.00025205,7]
[344299527,1733332243456,-559.20187794,0.00025205,7]
[344299529,1733332243466,-500.0,0.00025205,7]
[344299532,1733332243475,-500.0,0.00025205,7]
[344299534,1733332243485,-500.0,0.00025205,7]
[344299536,1733332243496,-500.0,0.00025205,7]
[344299538,1733332243506,-782.91,0.00025205,7]
[344299540,1733332243515,-500.0,0.00025205,7]
[344299542,1733332243524,-500.0,0.00025205,7]
[344299543,1733332243533,-777.04,0.00025205,7]
[344299545,1733332243542,-500.0,0.00025205,7]
[344299547,1733332243552,-500.0,0.00025205,7]
[344299549,1733332243562,-755.06,0.00025205,7]
[344299551,1733332243571,-500.0,0.00025205,7]
[344299553,1733332243580,-500.0,0.00025205,7]
[344299555,1733332243590,-1014.22,0.00025205,7]
[344299557,1733332243599,-500.0,0.00025205,7]
[344299560,1733332243609,-530.79624331,0.00025205,7]
[344299562,1733332243619,-500.0,0.00025205,7]
[344299564,1733332243628,-500.0,0.00025205,7]
[344299566,1733332243637,-500.0,0.00025205,7]
[344299568,1733332243647,-500.0,0.00025205,7]
[344299570,1733332243656,-500.0,0.00025205,7]
[344299572,1733332243665,-500.0,0.00025205,7]
[344299574,1733332243675,-500.0,0.00025205,7]
[344299576,1733332243684,-500.0,0.00025205,7]
[344299578,1733332243694,-200.0,0.00025205,7]
[344299580,1733332243704,-500.0,0.00025205,7]
[344299582,1733332243713,-500.0,0.00025205,7]
[344299584,1733332243722,-516.22328029,0.00025205,7]
[344299586,1733332243731,-500.0,0.00025205,7]
[344299588,1733332243740,-500.0,0.00025205,7]
[344299590,1733332243752,-729.3,0.00025205,7]
[344299592,1733332243761,-500.0,0.00025205,7]
[344299594,1733332243770,-500.0,0.00025205,7]
[344299596,1733332243779,-711.32,0.00025205,7]
[344299598,1733332243789,-500.0,0.00025205,7]
[344299600,1733332243798,-500.0,0.00025205,7]
[344299602,1733332243808,-593.64,0.00025205,7]
[344299604,1733332243818,-500.0,0.00025205,7]
[344299605,1733332243827,-1689.69,0.00025205,7]
[344299607,1733332243837,-500.0,0.00025205,7]
[344299609,1733332243847,-778.79,0.00025205,7]
[344299611,1733332243857,-500.0,0.00025205,7]
[344299614,1733332243868,-500.0,0.00025205,7]
[344299615,1733332243877,-500.0,0.00025205,7]
[344299631,1733332244010,-500.0,0.00025205,7]
[344299633,1733332244037,-795.5,0.00025205,7]
[344299636,1733332244047,-500.0,0.00025205,7]
[344299638,1733332244057,-458.99374679,0.00025205,7]
[344299639,1733332244067,-500.0,0.00025205,7]
[344299641,1733332244077,-500.0,0.00025205,7]
[344299643,1733332244087,-500.0,0.00025205,7]
[344299645,1733332244097,-548.55,0.00025205,7]
[344299648,1733332244107,-650.94,0.00025205,7]
[344299650,1733332244117,-500.0,0.00025205,7]
[344299651,1733332244127,-500.0,0.00025205,7]
[344299654,1733332244138,-631.55890457,0.00025205,7]
[344299655,1733332244148,-500.0,0.00025205,7]
[344299657,1733332244158,-500.0,0.00025205,7]
[344299659,1733332244168,-500.0,0.00025205,7]
[344299661,1733332244178,-659.69,0.00025205,7]
[344299663,1733332244188,-500.0,0.00025205,7]
[344299665,1733332244199,-500.0,0.00025205,7]
[344299667,1733332244209,-395.52483181,0.00025205,7]
[344299669,1733332244220,-500.0,0.00025205,7]
[344299671,1733332244230,-500.0,0.00025205,7]
[344299673,1733332244243,-500.0,0.00025205,7]
[344299675,1733332244267,-500.0,0.00025205,7]
[344299677,1733332244279,-1186.21,0.00025205,7]
[344299679,1733332244291,-500.0,0.00025205,7]
[344299681,1733332244300,-500.0,0.00025205,7]
[344299683,1733332244311,-500.0,0.00025205,7]
[344299685,1733332244322,-500.0,0.00025205,7]
[344299687,1733332244332,-500.0,0.00025205,7]
[344299690,1733332244343,-500.0,0.00025205,7]
[344299691,1733332244354,-489.56447895,0.00025205,7]
[344299694,1733332244364,-500.0,0.00025205,7]
[344299696,1733332244374,-500.0,0.00025205,7]
[344299698,1733332244383,-500.0,0.00025205,7]
[344299700,1733332244393,-915.82,0.00025205,7]
[344299702,1733332244403,-571.6661316,0.00025205,7]
[344299703,1733332244413,-239.91806833,0.00025205,7]
[344299705,1733332244423,-670.01,0.00025205,7]
[344299707,1733332244432,-500.0,0.00025205,7]
[344299710,1733332244443,-500.0,0.00025205,7]
[344299713,1733332244453,-500.0,0.00025205,7]
[344299716,1733332244463,-611.89,0.00025205,7]
[344299719,1733332244472,-500.0,0.00025205,7]
[344299723,1733332244482,-599.65,0.00025205,7]
[344299726,1733332244491,-3394.73,0.00025205,7]
[344299729,1733332244507,-500.0,0.00025205,7]